[Event "*** Titled Tuesday 3|2 Blitz"]
[Site "Chess.com"]
[Date "2016.07.05"]
[Round "7"]
[White "eltenedor"]
[Black "Makalexa"]
[Result "0-1"]
[WhiteElo "2027"]
[BlackElo "2180"]
[TimeControl "180+2"]
[EndTime "12:27:30 PDT"]
[Termination "Makalexa won by resignation"]

1. c4 {[%clk 0:03:01.9]} 1... c5 {[%clk 0:02:58]} 2. b3 {[%clk 0:03:01.5]} 2...
g6 {[%clk 0:02:56.6]} 3. Bb2 {[%clk 0:03:01.4]} 3... Nf6 {[%clk 0:02:57.7]} 4.
Bxf6 {[%clk 0:03:02.5]} 4... exf6 {[%clk 0:02:58.9]} 5. Nc3 {[%clk 0:03:00.9]}
5... f5 {[%clk 0:02:59]} 6. g3 {[%clk 0:03:01.5]} 6... Bg7 {[%clk 0:02:59.7]} 7.
Bg2 {[%clk 0:03:02]} 7... O-O {[%clk 0:02:58.6]} 8. Rc1 {[%clk 0:03:02.2]} 8...
Nc6 {[%clk 0:02:59]} 9. Nh3 {[%clk 0:03:02.1]} 9... Qa5 {[%clk 0:02:52.8]} 10.
Qc2 {[%clk 0:02:04.3]} 10... Nb4 {[%clk 0:02:51.2]} 11. Qb2 {[%clk 0:01:25]}
11... Nxa2 {[%clk 0:02:49.9]} 12. Qxa2 {[%clk 0:01:05.4]} 12... Bxc3 {[%clk
0:02:45.6]} 13. Qc2 {[%clk 0:01:03.5]} 13... Bb4 {[%clk 0:02:43.8]} 14. Nf4
{[%clk 0:01:02.7]} 14... d5 {[%clk 0:02:34.4]} 15. Bxd5 {[%clk 0:00:55.3]} 15...
Bd7 {[%clk 0:02:24]} 16. h4 {[%clk 0:00:53.2]} 16... Bc6 {[%clk 0:02:23.3]} 17.
h5 {[%clk 0:00:50.8]} 17... g5 {[%clk 0:02:18.4]} 18. Bxc6 {[%clk 0:00:48]}
18... bxc6 {[%clk 0:02:12]} 19. Nd3 {[%clk 0:00:31.8]} 19... Rad8 {[%clk
0:02:06.1]} 20. Rd1 {[%clk 0:00:27.1]} 20... Rfe8 {[%clk 0:01:55.8]} 21. h6
{[%clk 0:00:23.3]} 21... f6 {[%clk 0:01:35.5]} 22. f4 {[%clk 0:00:13.3]} 22...
Qc7 {[%clk 0:01:32.4]} 23. O-O {[%clk 0:00:09.5]} 23... Rxe2 {[%clk 0:01:28.3]}
24. fxg5 {[%clk 0:00:08.3]} 24... Qxg3+ {[%clk 0:01:28.1]} 0-1

[Event "*** Titled Tuesday 3|2 Blitz"]
[Site "Chess.com"]
[Date "2016.07.05"]
[Round "7"]
[White "rikyshi"]
[Black "Alliswell998"]
[Result "0-1"]
[WhiteElo "2109"]
[BlackElo "2177"]
[TimeControl "180+2"]
[EndTime "12:27:35 PDT"]
[Termination "Alliswell998 won by resignation"]

1. e4 {[%clk 0:03:01.9]} 1... c5 {[%clk 0:02:59.7]} 2. Nf3 {[%clk 0:02:58.3]}
2... d6 {[%clk 0:03:00.9]} 3. d4 {[%clk 0:02:33.1]} 3... cxd4 {[%clk 0:03:02.8]}
4. Nxd4 {[%clk 0:02:29.7]} 4... Nf6 {[%clk 0:03:03.5]} 5. Nc3 {[%clk 0:02:30.7]}
5... a6 {[%clk 0:03:04.9]} 6. Be2 {[%clk 0:02:27.1]} 6... e5 {[%clk 0:03:05.1]}
7. Nb3 {[%clk 0:02:25.6]} 7... Be7 {[%clk 0:03:05.8]} 8. Be3 {[%clk 0:02:26.9]}
8... Be6 {[%clk 0:03:06.9]} 9. O-O {[%clk 0:02:28.1]} 9... Nbd7 {[%clk
0:03:07.8]} 10. a4 {[%clk 0:02:29.6]} 10... Rc8 {[%clk 0:03:07.4]} 11. f4 {[%clk
0:02:30.3]} 11... Rxc3 {[%clk 0:02:55.9]} 12. bxc3 {[%clk 0:02:27.4]} 12... Nxe4
{[%clk 0:02:56.8]} 13. f5 {[%clk 0:02:26.7]} 13... Nxc3 {[%clk 0:02:51]} 14. Qd3
{[%clk 0:02:26.8]} 14... Nxe2+ {[%clk 0:02:50.8]} 15. Qxe2 {[%clk 0:02:28.7]}
15... Bd5 {[%clk 0:02:41]} 16. Rad1 {[%clk 0:02:28.4]} 16... Nf6 {[%clk
0:02:41]} 17. c4 {[%clk 0:02:27.5]} 17... Bc6 {[%clk 0:02:39.2]} 18. a5 {[%clk
0:02:28.1]} 18... O-O {[%clk 0:02:31.1]} 19. Bb6 {[%clk 0:02:28.2]} 19... Qc8
{[%clk 0:02:30.7]} 20. g4 {[%clk 0:02:27.5]} 20... Ne4 {[%clk 0:02:15.3]} 21.
Qe3 {[%clk 0:02:19.5]} 21... Bg5 {[%clk 0:02:14.7]} 22. Qh3 {[%clk 0:02:18.8]}
22... Ba4 {[%clk 0:01:40.3]} 23. Qd3 {[%clk 0:02:06.7]} 23... Bxb3 {[%clk
0:01:37.4]} 24. Qxb3 {[%clk 0:02:06.4]} 24... Nd2 {[%clk 0:01:37.3]} 25. Rxd2
{[%clk 0:02:04.7]} 25... Bxd2 {[%clk 0:01:37.5]} 26. f6 {[%clk 0:02:05.2]} 26...
Qxg4+ {[%clk 0:01:36]} 27. Qg3 {[%clk 0:01:59.1]} 27... Qxg3+ {[%clk 0:01:30.2]}
28. hxg3 {[%clk 0:02:01]} 28... e4 {[%clk 0:01:11]} 29. Bc7 {[%clk 0:01:52.5]}
29... e3 {[%clk 0:01:09.9]} 30. Bxd6 {[%clk 0:01:45.8]} 30... e2 {[%clk
0:01:05.3]} 31. Bxf8 {[%clk 0:01:33.9]} 31... exf1=Q+ {[%clk 0:01:03.7]} 32.
Kxf1 {[%clk 0:01:35.8]} 32... Kxf8 {[%clk 0:01:04.2]} 33. fxg7+ {[%clk
0:01:37.7]} 33... Kxg7 {[%clk 0:01:05.1]} 34. Ke2 {[%clk 0:01:38.3]} 34... Bxa5
{[%clk 0:01:06.1]} 35. Kd3 {[%clk 0:01:39.7]} 35... Bb6 {[%clk 0:01:05.6]} 36.
Ke4 {[%clk 0:01:38]} 36... Bc5 {[%clk 0:01:06.5]} 37. Kd5 {[%clk 0:01:39.1]}
37... b6 {[%clk 0:01:08]} 38. Kc6 {[%clk 0:01:40.5]} 38... a5 {[%clk 0:01:09.5]}
39. Kb5 {[%clk 0:01:41.1]} 39... Kf6 {[%clk 0:01:10.7]} 40. Ka4 {[%clk
0:01:41.9]} 40... Kg5 {[%clk 0:01:11.9]} 41. Kb5 {[%clk 0:01:43.8]} 41... Kg4
{[%clk 0:01:13]} 42. Ka6 {[%clk 0:01:45.7]} 42... a4 {[%clk 0:01:13.8]} 43. Kb7
{[%clk 0:01:47.6]} 43... a3 {[%clk 0:01:15.2]} 44. Kc7 {[%clk 0:01:49.5]} 44...
a2 {[%clk 0:01:16.8]} 0-1

[Event "*** Titled Tuesday 3|2 Blitz"]
[Site "Chess.com"]
[Date "2016.07.05"]
[Round "7"]
[White "Wolverine_master"]
[Black "Blitzstream"]
[Result "1/2-1/2"]
[WhiteElo "2025"]
[BlackElo "2473"]
[TimeControl "180+2"]
[EndTime "12:27:39 PDT"]
[Termination "Game drawn by repetition"]

1. e4 {[%clk 0:02:55.6]} 1... d5 {[%clk 0:03:00.7]} 2. exd5 {[%clk 0:02:53.8]}
2... Qxd5 {[%clk 0:03:02.6]} 3. Nc3 {[%clk 0:02:52.2]} 3... Qa5 {[%clk
0:03:03.4]} 4. d4 {[%clk 0:02:49.9]} 4... Nf6 {[%clk 0:03:04.4]} 5. Nf3 {[%clk
0:02:50.5]} 5... Nc6 {[%clk 0:03:05.1]} 6. h3 {[%clk 0:02:48.1]} 6... Bf5 {[%clk
0:03:03.5]} 7. Bd3 {[%clk 0:02:48.1]} 7... Bxd3 {[%clk 0:03:02.9]} 8. Qxd3
{[%clk 0:02:49.4]} 8... O-O-O {[%clk 0:03:04.8]} 9. Be3 {[%clk 0:02:42.4]} 9...
e6 {[%clk 0:03:01.4]} 10. O-O {[%clk 0:02:35.8]} 10... g5 {[%clk 0:02:36.4]} 11.
Bxg5 {[%clk 0:02:28.4]} 11... Be7 {[%clk 0:02:35.3]} 12. Qe3 {[%clk 0:01:54.2]}
12... Rhg8 {[%clk 0:02:30.9]} 13. Bh4 {[%clk 0:01:12.2]} 13... Qh5 {[%clk
0:02:19.9]} 14. Rad1 {[%clk 0:01:02.7]} 14... Nd5 {[%clk 0:01:43.1]} 15. Nxd5
{[%clk 0:01:00.5]} 15... Bxh4 {[%clk 0:01:39.3]} 16. Nf4 {[%clk 0:00:59.9]}
16... Qh6 {[%clk 0:01:37.5]} 17. d5 {[%clk 0:00:38.6]} 17... exd5 {[%clk
0:01:26.1]} 18. Nxd5 {[%clk 0:00:39.4]} 18... Qh5 {[%clk 0:01:10.7]} 19. Nf4
{[%clk 0:00:22.6]} 19... Qh6 {[%clk 0:01:07.4]} 20. Nd5 {[%clk 0:00:23.5]} 20...
Qh5 {[%clk 0:01:06.9]} 21. Nf4 {[%clk 0:00:24.3]} 21... Qh6 {[%clk 0:00:50.8]}
22. Nd5 {[%clk 0:00:25.3]} 1/2-1/2

[Event "*** Titled Tuesday 3|2 Blitz"]
[Site "Chess.com"]
[Date "2016.07.05"]
[Round "7"]
[White "BellJackson95"]
[Black "CraiggoryC"]
[Result "0-1"]
[WhiteElo "2170"]
[BlackElo "2094"]
[TimeControl "180+2"]
[EndTime "12:27:57 PDT"]
[Termination "CraiggoryC won by checkmate"]

1. d4 {[%clk 0:03:01.9]} 1... e6 {[%clk 0:02:57.3]} 2. c4 {[%clk 0:03:02.2]}
2... Nf6 {[%clk 0:02:58.3]} 3. Nf3 {[%clk 0:03:03.2]} 3... d5 {[%clk 0:02:59.7]}
4. g3 {[%clk 0:03:04.5]} 4... Be7 {[%clk 0:02:59.7]} 5. Bg2 {[%clk 0:03:06]}
5... O-O {[%clk 0:03:00.6]} 6. O-O {[%clk 0:03:07.3]} 6... dxc4 {[%clk 0:03:02]}
7. Ne5 {[%clk 0:03:08.2]} 7... Nc6 {[%clk 0:02:58.9]} 8. Bxc6 {[%clk 0:03:09.3]}
8... bxc6 {[%clk 0:02:58.9]} 9. Nxc6 {[%clk 0:03:11.2]} 9... Qe8 {[%clk
0:02:59.8]} 10. Nxe7+ {[%clk 0:03:12.7]} 10... Qxe7 {[%clk 0:03:00.6]} 11. Qa4
{[%clk 0:03:14.3]} 11... e5 {[%clk 0:02:54.1]} 12. dxe5 {[%clk 0:03:12.6]} 12...
Qxe5 {[%clk 0:02:52.8]} 13. Nc3 {[%clk 0:03:13.7]} 13... Bh3 {[%clk 0:02:16.8]}
14. Rd1 {[%clk 0:02:45.2]} 14... Rad8 {[%clk 0:02:09.9]} 15. Bf4 {[%clk
0:02:43.7]} 15... Qc5 {[%clk 0:01:58.6]} 16. Be3 {[%clk 0:02:20.5]} 16... Qh5
{[%clk 0:01:50.8]} 17. Qb5 {[%clk 0:02:07.6]} 17... Qxb5 {[%clk 0:01:20.1]} 18.
Nxb5 {[%clk 0:02:06.6]} 18... Rb8 {[%clk 0:01:21.5]} 19. Nxa7 {[%clk 0:01:48.7]}
19... Rxb2 {[%clk 0:01:21.2]} 20. Bc5 {[%clk 0:01:24.3]} 20... Re8 {[%clk
0:01:11.2]} 21. e3 {[%clk 0:01:20.1]} 21... Ne4 {[%clk 0:01:05.4]} 22. Rd5
{[%clk 0:00:58.7]} 22... Rxf2 {[%clk 0:00:57.9]} 23. Rad1 {[%clk 0:00:52.4]}
23... Rg2+ {[%clk 0:00:46.8]} 24. Kf1 {[%clk 0:00:50.4]} 24... Rxh2+ {[%clk
0:00:28.2]} 25. Kg1 {[%clk 0:00:46.9]} 25... Rg2+ {[%clk 0:00:28.2]} 26. Kf1
{[%clk 0:00:48.3]} 26... Nxg3+ {[%clk 0:00:25.5]} 27. Ke1 {[%clk 0:00:47.4]}
27... Re2# {[%clk 0:00:26.4]} 0-1

[Event "*** Titled Tuesday 3|2 Blitz"]
[Site "Chess.com"]
[Date "2016.07.05"]
[Round "7"]
[White "Fandorine"]
[Black "wonderfultime"]
[Result "1-0"]
[WhiteElo "2650"]
[BlackElo "2679"]
[TimeControl "180+2"]
[EndTime "12:28:08 PDT"]
[Termination "Fandorine won by resignation"]

1. e4 {[%clk 0:03:01.9]} 1... c5 {[%clk 0:03:00.9]} 2. Nf3 {[%clk 0:03:02.9]}
2... d6 {[%clk 0:03:02.5]} 3. d4 {[%clk 0:03:04.1]} 3... cxd4 {[%clk 0:03:04.4]}
4. Qxd4 {[%clk 0:03:05.7]} 4... Nc6 {[%clk 0:03:04.9]} 5. Bb5 {[%clk 0:03:07.3]}
5... Bd7 {[%clk 0:02:47.9]} 6. Qd3 {[%clk 0:03:07.4]} 6... Nf6 {[%clk
0:02:39.5]} 7. c4 {[%clk 0:03:08.1]} 7... a6 {[%clk 0:02:38.3]} 8. Bxc6 {[%clk
0:03:08.9]} 8... bxc6 {[%clk 0:02:39.1]} 9. Nc3 {[%clk 0:03:09.9]} 9... Bg4
{[%clk 0:02:28.4]} 10. Nd4 {[%clk 0:03:09.2]} 10... Qc7 {[%clk 0:02:16.2]} 11.
h3 {[%clk 0:03:09.6]} 11... Bc8 {[%clk 0:02:14.8]} 12. O-O {[%clk 0:03:10.9]}
12... e5 {[%clk 0:02:13.4]} 13. Nf3 {[%clk 0:03:04.7]} 13... Be7 {[%clk
0:02:14.6]} 14. Be3 {[%clk 0:03:05.9]} 14... O-O {[%clk 0:02:15.2]} 15. c5
{[%clk 0:03:07.4]} 15... dxc5 {[%clk 0:02:05.5]} 16. Na4 {[%clk 0:03:08.2]}
16... a5 {[%clk 0:01:57.6]} 17. Rfc1 {[%clk 0:03:00.5]} 17... Ba6 {[%clk
0:01:55.7]} 18. Qc2 {[%clk 0:03:01.9]} 18... c4 {[%clk 0:01:46.7]} 19. Bb6
{[%clk 0:02:32]} 19... Qb8 {[%clk 0:01:36.2]} 20. Bc5 {[%clk 0:02:32]} 20... Re8
{[%clk 0:01:11.5]} 21. Bxe7 {[%clk 0:02:31.9]} 21... Rxe7 {[%clk 0:01:13.4]} 22.
Nd2 {[%clk 0:02:22]} 22... Rd7 {[%clk 0:00:57.1]} 23. Nc5 {[%clk 0:02:16.7]}
23... Rd4 {[%clk 0:00:53.9]} 24. Nf3 {[%clk 0:02:12.3]} 24... Rd8 {[%clk
0:00:51.1]} 25. Nxa6 {[%clk 0:02:13.4]} 25... Rxa6 {[%clk 0:00:53]} 26. Qxc4
{[%clk 0:02:14.9]} 26... Rb6 {[%clk 0:00:54.2]} 27. b3 {[%clk 0:02:02.2]} 27...
Rb4 {[%clk 0:00:55.3]} 28. Qxc6 {[%clk 0:02:03.3]} 28... Rxe4 {[%clk 0:00:56.9]}
29. Rd1 {[%clk 0:01:47.8]} 29... h6 {[%clk 0:00:54.8]} 30. Qa6 {[%clk
0:01:34.1]} 30... a4 {[%clk 0:00:21.7]} 31. bxa4 {[%clk 0:01:27.9]} 31... Rxd1+
{[%clk 0:00:22.5]} 32. Rxd1 {[%clk 0:01:29.8]} 32... Qb2 {[%clk 0:00:23.4]} 33.
Qc8+ {[%clk 0:01:19.3]} 33... Kh7 {[%clk 0:00:22.4]} 34. Qf5+ {[%clk 0:01:20.9]}
1-0

[Event "*** Titled Tuesday 3|2 Blitz"]
[Site "Chess.com"]
[Date "2016.07.05"]
[Round "7"]
[White "oggy1984"]
[Black "alturas_pacificas"]
[Result "1-0"]
[WhiteElo "2297"]
[BlackElo "2150"]
[TimeControl "180+2"]
[EndTime "12:28:16 PDT"]
[Termination "oggy1984 won by resignation"]

1. e4 {[%clk 0:03:01.9]} 1... g6 {[%clk 0:03:00.6]} 2. d4 {[%clk 0:03:01.5]}
2... Bg7 {[%clk 0:03:01.4]} 3. Nc3 {[%clk 0:03:00.8]} 3... d6 {[%clk 0:03:02.5]}
4. f4 {[%clk 0:02:59.3]} 4... Nf6 {[%clk 0:03:02]} 5. Nf3 {[%clk 0:02:59.4]}
5... O-O {[%clk 0:03:02.6]} 6. Bd3 {[%clk 0:02:56.5]} 6... Na6 {[%clk
0:03:03.4]} 7. e5 {[%clk 0:02:56.2]} 7... dxe5 {[%clk 0:02:56.2]} 8. fxe5 {[%clk
0:02:52.1]} 8... Nd5 {[%clk 0:02:57.1]} 9. Be4 {[%clk 0:02:28.3]} 9... Nxc3
{[%clk 0:02:52.2]} 10. bxc3 {[%clk 0:02:28.2]} 10... c5 {[%clk 0:02:49.3]} 11.
O-O {[%clk 0:02:21]} 11... Qa5 {[%clk 0:02:36.8]} 12. Bd2 {[%clk 0:02:15.1]}
12... Qa4 {[%clk 0:02:25.7]} 13. Rb1 {[%clk 0:02:06.7]} 13... Bg4 {[%clk
0:02:10.1]} 14. Rxb7 {[%clk 0:01:39.5]} 14... cxd4 {[%clk 0:02:08]} 15. Rxe7
{[%clk 0:01:29.6]} 15... dxc3 {[%clk 0:02:08.1]} 16. Bxa8 {[%clk 0:01:28]} 16...
cxd2 {[%clk 0:02:09.1]} 17. Bd5 {[%clk 0:01:16.9]} 17... Nb4 {[%clk 0:01:50.5]}
18. Bb3 {[%clk 0:01:07.5]} 18... Qa5 {[%clk 0:01:46.4]} 19. Kh1 {[%clk
0:01:00.2]} 19... Qc5 {[%clk 0:01:39.6]} 20. Rb7 {[%clk 0:00:46.5]} 20... Bxe5
{[%clk 0:01:37.5]} 21. Qxd2 {[%clk 0:00:41.1]} 21... Bxf3 {[%clk 0:01:37.4]} 22.
Rxf3 {[%clk 0:00:38.2]} 22... Nc6 {[%clk 0:01:20.6]} 23. Rfxf7 {[%clk 0:00:25]}
23... Rxf7 {[%clk 0:01:19.1]} 24. Rxf7 {[%clk 0:00:23.4]} 24... Nd4 {[%clk
0:01:11.2]} 25. Rb7+ {[%clk 0:00:11.9]} 25... Nxb3 {[%clk 0:01:02.9]} 26. Qd8+
{[%clk 0:00:09]} 26... Qf8 {[%clk 0:01:04.4]} 27. Qd5+ {[%clk 0:00:09.3]} 27...
Kh8 {[%clk 0:01:05.4]} 28. Qxe5+ {[%clk 0:00:09.1]} 1-0

[Event "*** Titled Tuesday 3|2 Blitz"]
[Site "Chess.com"]
[Date "2016.07.05"]
[Round "7"]
[White "Abrito99"]
[Black "salomez"]
[Result "1-0"]
[WhiteElo "2335"]
[BlackElo "2134"]
[TimeControl "180+2"]
[EndTime "12:28:40 PDT"]
[Termination "Abrito99 won on time"]

1. e4 {[%clk 0:03:01.9]} 1... c5 {[%clk 0:02:59.9]} 2. d4 {[%clk 0:03:02]} 2...
cxd4 {[%clk 0:02:49.9]} 3. c3 {[%clk 0:02:58.3]} 3... Nf6 {[%clk 0:02:49.6]} 4.
e5 {[%clk 0:02:59.2]} 4... Nd5 {[%clk 0:02:50.4]} 5. Nf3 {[%clk 0:03:00]} 5...
Nc6 {[%clk 0:02:50.9]} 6. Bc4 {[%clk 0:03:00.4]} 6... Nb6 {[%clk 0:02:49.3]} 7.
Bb3 {[%clk 0:03:01.6]} 7... d6 {[%clk 0:02:45.3]} 8. exd6 {[%clk 0:03:00.9]}
8... e6 {[%clk 0:02:46.3]} 9. Nxd4 {[%clk 0:02:35.5]} 9... Nxd4 {[%clk
0:02:42.9]} 10. Qxd4 {[%clk 0:02:36.1]} 10... Qxd6 {[%clk 0:02:43.8]} 11. Be3
{[%clk 0:02:32.8]} 11... Qxd4 {[%clk 0:02:35.8]} 12. Bxd4 {[%clk 0:02:34.7]}
12... f6 {[%clk 0:02:35.5]} 13. Nd2 {[%clk 0:02:27.7]} 13... Be7 {[%clk
0:02:30.5]} 14. O-O {[%clk 0:02:24.9]} 14... Kf7 {[%clk 0:02:31.1]} 15. Rfe1
{[%clk 0:02:25.8]} 15... Bd7 {[%clk 0:02:22.6]} 16. Rad1 {[%clk 0:02:18.9]}
16... Rac8 {[%clk 0:02:22.7]} 17. Bxb6 {[%clk 0:02:08.3]} 17... axb6 {[%clk
0:02:22.7]} 18. Nc4 {[%clk 0:01:55.5]} 18... Ba4 {[%clk 0:01:13.8]} 19. Nd6+
{[%clk 0:01:14.9]} 19... Bxd6 {[%clk 0:01:11.2]} 20. Bxe6+ {[%clk 0:01:15.7]}
20... Kg6 {[%clk 0:00:57.5]} 21. Rxd6 {[%clk 0:01:13.2]} 21... Rc6 {[%clk
0:00:54.9]} 22. Rd4 {[%clk 0:01:08.7]} 22... Bb5 {[%clk 0:00:20.3]} 23. Re3
{[%clk 0:00:46.1]} 23... f5 {[%clk 0:00:16]} 24. Bd7 {[%clk 0:00:38]} 24... Rc5
{[%clk 0:00:14.7]} 25. b4 {[%clk 0:00:38.9]} 25... f4 {[%clk 0:00:06.1]} 26.
Re6+ {[%clk 0:00:39.5]} 26... Kf7 {[%clk 0:00:06.1]} 27. Rxf4+ {[%clk
0:00:40.3]} 1-0

[Event "*** Titled Tuesday 3|2 Blitz"]
[Site "Chess.com"]
[Date "2016.07.05"]
[Round "7"]
[White "hypert"]
[Black "Ksenia_Legenko"]
[Result "1-0"]
[WhiteElo "2279"]
[BlackElo "2058"]
[TimeControl "180+2"]
[EndTime "12:28:55 PDT"]
[Termination "hypert won by resignation"]

1. e4 {[%clk 0:03:01.9]} 1... c6 {[%clk 0:02:59.4]} 2. d4 {[%clk 0:03:01.6]}
2... d5 {[%clk 0:03:00.8]} 3. Nc3 {[%clk 0:03:03]} 3... dxe4 {[%clk 0:03:01.3]}
4. Nxe4 {[%clk 0:03:04.9]} 4... Bf5 {[%clk 0:03:02.9]} 5. Ng3 {[%clk 0:03:06.5]}
5... Bg6 {[%clk 0:03:04.5]} 6. h4 {[%clk 0:03:08.2]} 6... h6 {[%clk 0:03:06]} 7.
Nf3 {[%clk 0:03:08.7]} 7... Nd7 {[%clk 0:03:07.5]} 8. h5 {[%clk 0:03:09.8]} 8...
Bh7 {[%clk 0:03:09]} 9. Bd3 {[%clk 0:03:11.5]} 9... Bxd3 {[%clk 0:03:10.6]} 10.
Qxd3 {[%clk 0:03:13.4]} 10... e6 {[%clk 0:03:12.1]} 11. Bd2 {[%clk 0:03:14.7]}
11... Qc7 {[%clk 0:03:12.2]} 12. O-O-O {[%clk 0:03:15.2]} 12... Ngf6 {[%clk
0:03:12.4]} 13. Kb1 {[%clk 0:03:13.2]} 13... O-O-O {[%clk 0:03:11.2]} 14. Ne4
{[%clk 0:03:14.1]} 14... Nxe4 {[%clk 0:03:11.1]} 15. Qxe4 {[%clk 0:03:15.3]}
15... Nf6 {[%clk 0:03:12.7]} 16. Qe2 {[%clk 0:03:15.2]} 16... Bd6 {[%clk
0:03:06.4]} 17. g3 {[%clk 0:03:15.9]} 17... Rhe8 {[%clk 0:02:40.3]} 18. c4
{[%clk 0:02:39.5]} 18... c5 {[%clk 0:02:40.6]} 19. Bc3 {[%clk 0:02:29.7]} 19...
cxd4 {[%clk 0:02:40.8]} 20. Nxd4 {[%clk 0:02:28.7]} 20... a6 {[%clk 0:02:41.8]}
21. Nb3 {[%clk 0:02:22.6]} 21... Rd7 {[%clk 0:02:42.1]} 22. c5 {[%clk
0:01:47.2]} 22... Be7 {[%clk 0:01:39.9]} 23. Rxd7 {[%clk 0:01:21.1]} 23... Qxd7
{[%clk 0:01:20.5]} 24. Bxf6 {[%clk 0:00:59.4]} 24... Bxf6 {[%clk 0:01:12.2]} 25.
c6 {[%clk 0:01:00.4]} 25... bxc6 {[%clk 0:00:59.8]} 26. Qxa6+ {[%clk 0:01:00.2]}
26... Qb7 {[%clk 0:01:00.6]} 27. Qc4 {[%clk 0:00:56]} 27... Rd8 {[%clk
0:00:42.3]} 28. Rc1 {[%clk 0:00:56.6]} 28... Rd6 {[%clk 0:00:30.7]} 29. f4
{[%clk 0:00:48.7]} 29... Kd7 {[%clk 0:00:17.5]} 30. Nc5+ {[%clk 0:00:46.3]} 1-0

[Event "*** Titled Tuesday 3|2 Blitz"]
[Site "Chess.com"]
[Date "2016.07.05"]
[Round "7"]
[White "LaStreetCmaMaison"]
[Black "Gajuchess"]
[Result "1-0"]
[WhiteElo "2440"]
[BlackElo "2527"]
[TimeControl "180+2"]
[EndTime "12:29:32 PDT"]
[Termination "LaStreetCmaMaison won on time"]

1. Nf3 {[%clk 0:03:01.9]} 1... d5 {[%clk 0:03:00.8]} 2. g3 {[%clk 0:03:02.8]}
2... Nf6 {[%clk 0:03:01.6]} 3. Bg2 {[%clk 0:03:04.3]} 3... Bg4 {[%clk
0:03:02.8]} 4. O-O {[%clk 0:03:05.8]} 4... c6 {[%clk 0:03:03.8]} 5. d3 {[%clk
0:03:06.2]} 5... Nbd7 {[%clk 0:03:04.2]} 6. h3 {[%clk 0:03:07.8]} 6... Bxf3
{[%clk 0:03:04.9]} 7. Bxf3 {[%clk 0:03:09.7]} 7... e6 {[%clk 0:03:05]} 8. e4
{[%clk 0:03:08.9]} 8... Bd6 {[%clk 0:03:03.8]} 9. Bg2 {[%clk 0:03:08.4]} 9...
Qc7 {[%clk 0:02:54.1]} 10. a4 {[%clk 0:02:59.8]} 10... h5 {[%clk 0:02:53.8]} 11.
f4 {[%clk 0:02:40.4]} 11... dxe4 {[%clk 0:02:53]} 12. dxe4 {[%clk 0:02:40.1]}
12... O-O-O {[%clk 0:02:53.8]} 13. Qe2 {[%clk 0:02:37.6]} 13... h4 {[%clk
0:02:21.3]} 14. g4 {[%clk 0:02:31.8]} 14... g5 {[%clk 0:02:21.8]} 15. fxg5
{[%clk 0:02:27.9]} 15... Nh7 {[%clk 0:02:17.5]} 16. Be3 {[%clk 0:02:19.3]} 16...
Ne5 {[%clk 0:02:15.9]} 17. Nc3 {[%clk 0:02:06.7]} 17... Rhg8 {[%clk 0:02:14.2]}
18. Bxa7 {[%clk 0:02:05.1]} 18... Nxg5 {[%clk 0:02:06.7]} 19. a5 {[%clk
0:02:04]} 19... Qe7 {[%clk 0:00:49.7]} 20. Kh1 {[%clk 0:01:55.5]} 20... Bc5
{[%clk 0:00:41.8]} 21. Bb6 {[%clk 0:01:47]} 21... Rd4 {[%clk 0:00:30.4]} 22. Na4
{[%clk 0:01:37.8]} 22... Bxb6 {[%clk 0:00:29.8]} 23. Nxb6+ {[%clk 0:01:38.6]}
23... Kc7 {[%clk 0:00:30.6]} 24. c3 {[%clk 0:01:39.5]} 24... Rd3 {[%clk
0:00:30.6]} 25. Nc4 {[%clk 0:01:40.5]} 25... Rxh3+ {[%clk 0:00:22.6]} 26. Bxh3
{[%clk 0:01:40.9]} 26... Nxc4 {[%clk 0:00:23.7]} 27. Qxc4 {[%clk 0:01:40.9]}
27... Nxh3 {[%clk 0:00:24.8]} 28. a6 {[%clk 0:01:33.7]} 28... b5 {[%clk
0:00:24.1]} 29. Qb4 {[%clk 0:01:33.8]} 29... Qd7 {[%clk 0:00:19.8]} 30. a7
{[%clk 0:01:28.4]} 30... Qd3 {[%clk 0:00:09.6]} 31. Rxf7+ {[%clk 0:01:26.8]}
31... Kb6 {[%clk 0:00:05.7]} 32. Qd4+ {[%clk 0:01:26.7]} 32... Qxd4 {[%clk
0:00:06.3]} 33. cxd4 {[%clk 0:01:28.6]} 33... Ra8 {[%clk 0:00:07.3]} 34. e5
{[%clk 0:01:15.9]} 34... Ng5 {[%clk 0:00:07.8]} 35. Rd7 {[%clk 0:01:16.7]} 35...
h3 {[%clk 0:00:07.1]} 36. Kh2 {[%clk 0:01:17.2]} 36... b4 {[%clk 0:00:05.9]} 37.
b3 {[%clk 0:01:12.1]} 37... Nf3+ {[%clk 0:00:06]} 38. Kxh3 {[%clk 0:01:10.1]}
38... Nd2 {[%clk 0:00:07.9]} 39. Ra4 {[%clk 0:01:10.5]} 39... Ne4 {[%clk
0:00:02.6]} 40. Rxb4+ {[%clk 0:01:10.8]} 40... Ka6 {[%clk 0:00:02.9]} 41. Rc7
{[%clk 0:01:06.8]} 1-0

[Event "*** Titled Tuesday 3|2 Blitz"]
[Site "Chess.com"]
[Date "2016.07.05"]
[Round "7"]
[White "oskariot"]
[Black "Astaneh"]
[Result "1-0"]
[WhiteElo "2281"]
[BlackElo "2467"]
[TimeControl "180+2"]
[EndTime "12:29:35 PDT"]
[Termination "oskariot won by resignation"]

1. e4 {[%clk 0:03:01.9]} 1... c6 {[%clk 0:02:59.3]} 2. d4 {[%clk 0:03:01.9]}
2... d5 {[%clk 0:03:01.2]} 3. e5 {[%clk 0:03:03.4]} 3... Bf5 {[%clk 0:03:01.4]}
4. Nf3 {[%clk 0:03:04.7]} 4... e6 {[%clk 0:03:02.1]} 5. Be2 {[%clk 0:03:06.4]}
5... Nd7 {[%clk 0:03:01.7]} 6. O-O {[%clk 0:03:06.5]} 6... h6 {[%clk 0:03:02.7]}
7. Nbd2 {[%clk 0:03:07.4]} 7... Ne7 {[%clk 0:03:03.1]} 8. Nb3 {[%clk 0:03:08.9]}
8... Bh7 {[%clk 0:03:03]} 9. a4 {[%clk 0:03:07.5]} 9... Nc8 {[%clk 0:03:00.9]}
10. a5 {[%clk 0:03:05.4]} 10... a6 {[%clk 0:02:56.1]} 11. Be3 {[%clk 0:03:02.4]}
11... Be7 {[%clk 0:02:52.2]} 12. Ne1 {[%clk 0:03:03.2]} 12... O-O {[%clk
0:02:50.4]} 13. f4 {[%clk 0:03:04.3]} 13... Qc7 {[%clk 0:02:46.6]} 14. Bd3
{[%clk 0:03:02]} 14... c5 {[%clk 0:02:44.7]} 15. Bxh7+ {[%clk 0:02:57.2]} 15...
Kxh7 {[%clk 0:02:46.6]} 16. c3 {[%clk 0:02:38.1]} 16... f5 {[%clk 0:02:35.4]}
17. exf6 {[%clk 0:02:27]} 17... Rxf6 {[%clk 0:02:33.4]} 18. dxc5 {[%clk
0:01:34.3]} 18... Nxc5 {[%clk 0:02:34.2]} 19. Bd4 {[%clk 0:01:25.1]} 19... Nxb3
{[%clk 0:01:49.6]} 20. Qxb3 {[%clk 0:01:23.5]} 20... Rxf4 {[%clk 0:01:50.2]} 21.
Qc2+ {[%clk 0:00:28.5]} 21... Re4 {[%clk 0:01:23]} 22. Nd3 {[%clk 0:00:23]}
22... Rxd4 {[%clk 0:00:45.5]} 23. Nc5+ {[%clk 0:00:15.7]} 23... Re4 {[%clk
0:00:46.9]} 24. Nxe4 {[%clk 0:00:16.9]} 24... dxe4 {[%clk 0:00:48.8]} 25. Qxe4+
{[%clk 0:00:18.7]} 25... Kh8 {[%clk 0:00:47.9]} 26. Qxe6 {[%clk 0:00:19.7]}
26... Nd6 {[%clk 0:00:32.4]} 27. Rae1 {[%clk 0:00:20.5]} 27... Re8 {[%clk
0:00:33.5]} 28. Qd5 {[%clk 0:00:20.9]} 28... Bf6 {[%clk 0:00:30.4]} 29. Rxe8+
{[%clk 0:00:17.4]} 29... Nxe8 {[%clk 0:00:32.3]} 30. Re1 {[%clk 0:00:16.5]}
30... Nd6 {[%clk 0:00:28.1]} 31. Re6 {[%clk 0:00:16.3]} 31... Nc4 {[%clk
0:00:18.6]} 32. Re8+ {[%clk 0:00:14.1]} 32... Kh7 {[%clk 0:00:19.7]} 33. Qf5+
{[%clk 0:00:14.8]} 33... g6 {[%clk 0:00:16.1]} 34. Qxf6 {[%clk 0:00:15.5]} 34...
Qc5+ {[%clk 0:00:10.5]} 35. Kh1 {[%clk 0:00:10.4]} 1-0